[Event "Titled Tuesday Blitz July 13 2021"]
[White "Ozen, Bahadir"]
[Black "Grigoriants, Sergey"]
[WhiteFideId "6337058"]
[BlackFideId "4130804"]
[WhiteElo "2503"]
[BlackElo "2502"]
[Result "1-0"]
[Round "04"]
[TimeControl "180+1"]
[Date "2021.07.13"]
[WhiteClock "0:00:08"]
[BlackClock "0:00:06"]

1. d4 {[%clk 0:03:00]}  Nf6 {[%clk 0:02:59]} 2. Nf3 {[%clk 0:02:59]}  d5 {[%clk 0:02:59]} 3. e3 {[%clk 0:02:59]}  g6 {[%clk 0:02:57]} 4. Be2 {[%clk 0:02:57]}  Bg7 {[%clk 0:02:57]} 5. O-O {[%clk 0:02:58]}  O-O {[%clk 0:02:58]} 6. b4 {[%clk 0:02:58]}  b6 {[%clk 0:02:49]} 7. Bb2 {[%clk 0:02:57]}  Bb7 {[%clk 0:02:48]} 8. Nbd2 {[%clk 0:02:47]}  Nbd7 {[%clk 0:02:38]} 9. c4 {[%clk 0:02:46]}  dxc4 {[%clk 0:02:24]} 10. Nxc4 {[%clk 0:02:46]}  Nd5 {[%clk 0:02:12]} 11. Qb3 {[%clk 0:02:43]}  a6 {[%clk 0:02:03]} 12. Rfd1 {[%clk 0:02:43]}  Rb8 {[%clk 0:02:00]} 13. Rac1 {[%clk 0:02:42]}  e6 {[%clk 0:01:59]} 14. a3 {[%clk 0:02:39]}  h6 {[%clk 0:01:57]} 15. h3 {[%clk 0:02:38]}  Qe7 {[%clk 0:01:56]} 16. Qa2 {[%clk 0:01:57]}  Rfd8 {[%clk 0:01:55]} 17. Qa1 {[%clk 0:01:58]}  Kh7 {[%clk 0:01:48]} 18. Rc2 {[%clk 0:01:57]}  f5 {[%clk 0:01:28]} 19. Nce5 {[%clk 0:01:46]}  Nxe5 {[%clk 0:01:26]} 20. Nxe5 {[%clk 0:01:46]}  Bxe5 {[%clk 0:01:24]} 21. dxe5 {[%clk 0:01:46]}  c5 {[%clk 0:01:23]} 22. bxc5 {[%clk 0:01:46]}  bxc5 {[%clk 0:01:24]} 23. Rdc1 {[%clk 0:01:45]}  Rbc8 {[%clk 0:01:23]} 24. Bf3 {[%clk 0:00:59]}  Rc7 {[%clk 0:01:16]} 25. Kh1 {[%clk 0:00:42]}  Rdc8 {[%clk 0:01:16]} 26. Qa2 {[%clk 0:00:43]}  h5 {[%clk 0:01:09]} 27. Qb3 {[%clk 0:00:42]}  Kh6 {[%clk 0:01:07]} 28. e4 {[%clk 0:00:38]}  fxe4 {[%clk 0:01:00]} 29. Bxe4 {[%clk 0:00:39]}  Qg5 {[%clk 0:00:53]} 30. Re1 {[%clk 0:00:37]}  c4 {[%clk 0:00:51]} 31. Qf3 {[%clk 0:00:38]}  Kg7 {[%clk 0:00:44]} 32. Bc1 {[%clk 0:00:33]}  Qh4 {[%clk 0:00:42]} 33. Kg1 {[%clk 0:00:24]}  Rf7 {[%clk 0:00:39]} 34. Bh6+ {[%clk 0:00:23]}  Kg8 {[%clk 0:00:36]} 35. Qg3 {[%clk 0:00:23]}  Qxg3 {[%clk 0:00:32]} 36. fxg3 {[%clk 0:00:23]}  Kh7 {[%clk 0:00:25]} 37. Bg5 {[%clk 0:00:23]}  Nb6 {[%clk 0:00:20]} 38. Bxb7 {[%clk 0:00:19]}  Rxb7 {[%clk 0:00:21]} 39. Rb1 {[%clk 0:00:20]}  Rcb8 {[%clk 0:00:11]} 40. Rc3 {[%clk 0:00:19]}  Kg8 {[%clk 0:00:06]} 41. Rf1 {[%clk 0:00:18]}  Rc8 {[%clk 0:00:05]} 42. Rb1 {[%clk 0:00:18]}  Rcc7 {[%clk 0:00:04]} 43. Bd8 {[%clk 0:00:15]}  Nd5 {[%clk 0:00:04]} 44. Rxb7 {[%clk 0:00:13]}  Rxb7 {[%clk 0:00:05]} 45. Rxc4 {[%clk 0:00:14]}  Rb3 {[%clk 0:00:06]} 46. Bh4 {[%clk 0:00:07]}  Rxa3 {[%clk 0:00:06]} 47. Rc6 {[%clk 0:00:07]}  Kf7 {[%clk 0:00:06]} 48. Rd6 {[%clk 0:00:07]}  g5 {[%clk 0:00:07]} 49. Bxg5 {[%clk 0:00:07]}  Rxg3 {[%clk 0:00:07]} 50. Rd7+ {[%clk 0:00:08]}  Ke8 {[%clk 0:00:06]} 51. Rd8+ {[%clk 0:00:08]}  Kf7 {[%clk 0:00:07]} 52. Rd7+ {[%clk 0:00:08]}  Kg6 {[%clk 0:00:06]} 53. Bh4 {[%clk 0:00:08]} 1-0


[Site "https://www.chess.com"]

[Event "Titled Tuesday Blitz July 13 2021"]
[White "Papasimakopoulos, Alexandros"]
[Black "Vyatkin, Dmitry"]
[WhiteFideId "4244125"]
[BlackFideId "4171900"]
[WhiteElo "2352"]
[BlackElo "2279"]
[Result "1/2-1/2"]
[Round "04"]
[TimeControl "180+1"]
[Date "2021.07.13"]
[WhiteClock "0:00:14"]
[BlackClock "0:00:19"]

1. d4 {[%clk 0:03:00]}  Nf6 {[%clk 0:02:59]} 2. c4 {[%clk 0:02:59]}  g6 {[%clk 0:02:58]} 3. Nc3 {[%clk 0:02:59]}  Bg7 {[%clk 0:02:58]} 4. e4 {[%clk 0:02:59]}  d6 {[%clk 0:02:58]} 5. f3 {[%clk 0:03:00]}  O-O {[%clk 0:02:58]} 6. Nge2 {[%clk 0:03:00]}  c5 {[%clk 0:02:50]} 7. d5 {[%clk 0:03:00]}  e6 {[%clk 0:02:50]} 8. Ng3 {[%clk 0:02:59]}  exd5 {[%clk 0:02:50]} 9. cxd5 {[%clk 0:02:58]}  h5 {[%clk 0:02:51]} 10. Bg5 {[%clk 0:02:57]}  a6 {[%clk 0:02:49]} 11. a4 {[%clk 0:02:57]}  Qa5 {[%clk 0:02:47]} 12. Be2 {[%clk 0:02:52]}  Re8 {[%clk 0:02:42]} 13. Nf1 {[%clk 0:02:46]}  Nh7 {[%clk 0:02:40]} 14. Bf4 {[%clk 0:02:44]}  Bxc3+ {[%clk 0:02:24]} 15. bxc3 {[%clk 0:02:45]}  Qxc3+ {[%clk 0:02:23]} 16. Bd2 {[%clk 0:02:45]}  Qf6 {[%clk 0:02:22]} 17. Ne3 {[%clk 0:02:42]}  Nd7 {[%clk 0:02:18]} 18. O-O {[%clk 0:02:41]}  Ne5 {[%clk 0:02:18]} 19. Qc2 {[%clk 0:02:31]}  Qe7 {[%clk 0:02:02]} 20. Bc3 {[%clk 0:02:26]}  Nf6 {[%clk 0:01:46]} 21. Rfb1 {[%clk 0:02:16]}  h4 {[%clk 0:01:43]} 22. Re1 {[%clk 0:01:39]}  Nh5 {[%clk 0:01:42]} 23. Bf1 {[%clk 0:01:38]}  Qg5 {[%clk 0:01:40]} 24. Bxe5 {[%clk 0:01:28]}  Rxe5 {[%clk 0:01:34]} 25. Nc4 {[%clk 0:01:27]}  Qf6 {[%clk 0:01:05]} 26. Nxe5 {[%clk 0:01:27]}  Qxe5 {[%clk 0:01:05]} 27. Rab1 {[%clk 0:01:21]}  Nf4 {[%clk 0:01:01]} 28. Qb2 {[%clk 0:01:18]}  Qg5 {[%clk 0:01:01]} 29. Kh1 {[%clk 0:01:15]}  f6 {[%clk 0:00:44]} 30. Qb6 {[%clk 0:01:11]}  Qe5 {[%clk 0:00:42]} 31. Qd8+ {[%clk 0:01:09]}  Kg7 {[%clk 0:00:42]} 32. Rb6 {[%clk 0:01:06]}  Qc3 {[%clk 0:00:38]} 33. Qe7+ {[%clk 0:00:58]}  Kh6 {[%clk 0:00:37]} 34. Qf8+ {[%clk 0:00:51]}  Kg5 {[%clk 0:00:36]} 35. Reb1 {[%clk 0:00:32]}  h3 {[%clk 0:00:36]} 36. R6b2 {[%clk 0:00:23]}  hxg2+ {[%clk 0:00:34]} 37. Bxg2 {[%clk 0:00:23]}  Bh3 {[%clk 0:00:32]} 38. Qxd6 {[%clk 0:00:17]}  Bxg2+ {[%clk 0:00:30]} 39. Rxg2+ {[%clk 0:00:17]}  Nxg2 {[%clk 0:00:30]} 40. Qg3+ {[%clk 0:00:18]}  Kh6 {[%clk 0:00:30]} 41. Qxg2 {[%clk 0:00:18]}  b5 {[%clk 0:00:27]} 42. Qh3+ {[%clk 0:00:18]}  Kg7 {[%clk 0:00:26]} 43. Rg1 {[%clk 0:00:17]}  Ra7 {[%clk 0:00:24]} 44. Qg3 {[%clk 0:00:16]}  g5 {[%clk 0:00:24]} 45. h4 {[%clk 0:00:17]}  Kg6 {[%clk 0:00:22]} 46. Qg4 {[%clk 0:00:15]}  Rh7 {[%clk 0:00:22]} 47. Qf5+ {[%clk 0:00:15]}  Kg7 {[%clk 0:00:22]} 48. Rg4 {[%clk 0:00:14]}  Rxh4+ {[%clk 0:00:19]} 49. Rxh4 {[%clk 0:00:14]}  Qe1+ {[%clk 0:00:19]} 50. Kg2 {[%clk 0:00:14]}  gxh4 {[%clk 0:00:19]} 51. Qg4+ {[%clk 0:00:13]}  Kf7 {[%clk 0:00:19]} 52. Kh3 {[%clk 0:00:14]}  bxa4 {[%clk 0:00:19]} 53. Qd7+ {[%clk 0:00:13]}  Kg6 {[%clk 0:00:18]} 54. Qf5+ {[%clk 0:00:14]}  Kg7 {[%clk 0:00:18]} 55. Qd7+ {[%clk 0:00:14]}  Kf8 {[%clk 0:00:18]} 56. Qd8+ {[%clk 0:00:14]}  Kf7 {[%clk 0:00:18]} 57. Qd7+ {[%clk 0:00:15]}  Kg6 {[%clk 0:00:18]} 58. Qg4+ {[%clk 0:00:14]}  Kh6 {[%clk 0:00:18]} 59. Qf4+ {[%clk 0:00:14]}  Kg7 {[%clk 0:00:17]} 60. Qg4+ {[%clk 0:00:14]}  Kh6 {[%clk 0:00:18]} 61. Qf4+ {[%clk 0:00:14]}  Kh7 {[%clk 0:00:18]} 62. Qf5+ {[%clk 0:00:14]}  Kg7 {[%clk 0:00:18]} 63. Qd7+ {[%clk 0:00:14]}  Kg6 {[%clk 0:00:19]} 1/2-1/2


[Site "https://www.chess.com"]

[Event "Titled Tuesday Blitz July 13 2021"]
[White "Pelopidass"]
[Black "Moskalenko, Alexander"]
[BlackFideId "4155351"]
[WhiteElo "2547"]
[BlackElo "2495"]
[Result "1/2-1/2"]
[Round "04"]
[TimeControl "180+1"]
[Date "2021.07.13"]
[WhiteClock "0:00:51"]
[BlackClock "0:01:24"]

1. d4 {[%clk 0:03:00]}  d5 {[%clk 0:02:42]} 2. c4 {[%clk 0:03:00]}  c6 {[%clk 0:02:39]} 3. Nf3 {[%clk 0:03:00]}  Nf6 {[%clk 0:02:38]} 4. e3 {[%clk 0:03:00]}  Bf5 {[%clk 0:02:31]} 5. Bd3 {[%clk 0:02:59]}  Bxd3 {[%clk 0:02:31]} 6. Qxd3 {[%clk 0:03:00]}  e6 {[%clk 0:02:32]} 7. O-O {[%clk 0:03:00]}  Nbd7 {[%clk 0:02:32]} 8. Nbd2 {[%clk 0:02:59]}  Be7 {[%clk 0:02:29]} 9. b3 {[%clk 0:02:58]}  a5 {[%clk 0:02:28]} 10. Bb2 {[%clk 0:02:58]}  O-O {[%clk 0:02:28]} 11. e4 {[%clk 0:02:58]}  dxe4 {[%clk 0:02:28]} 12. Nxe4 {[%clk 0:02:59]}  a4 {[%clk 0:02:15]} 13. Rfd1 {[%clk 0:02:55]}  Nxe4 {[%clk 0:02:11]} 14. Qxe4 {[%clk 0:02:55]}  axb3 {[%clk 0:02:11]} 15. axb3 {[%clk 0:02:55]}  Qb6 {[%clk 0:02:11]} 16. Qe3 {[%clk 0:02:51]}  Rfd8 {[%clk 0:02:05]} 17. h4 {[%clk 0:02:43]}  Bf6 {[%clk 0:02:03]} 18. g4 {[%clk 0:02:31]}  g6 {[%clk 0:02:02]} 19. g5 {[%clk 0:02:22]}  Bg7 {[%clk 0:02:00]} 20. Rxa8 {[%clk 0:02:04]}  Rxa8 {[%clk 0:01:59]} 21. Ra1 {[%clk 0:02:03]}  Rxa1+ {[%clk 0:01:58]} 22. Bxa1 {[%clk 0:02:04]}  Qb4 {[%clk 0:01:58]} 23. Kg2 {[%clk 0:01:48]}  Qa3 {[%clk 0:01:48]} 24. Qc3 {[%clk 0:01:22]}  Nc5 {[%clk 0:01:39]} 25. b4 {[%clk 0:01:14]}  Qxc3 {[%clk 0:01:30]} 26. Bxc3 {[%clk 0:01:15]}  Ne4 {[%clk 0:01:31]} 27. Be1 {[%clk 0:01:03]}  Nd6 {[%clk 0:01:30]} 28. c5 {[%clk 0:00:56]}  Nb5 {[%clk 0:01:31]} 29. Ne5 {[%clk 0:00:51]}  Nxd4 {[%clk 0:01:24]} 30. Nc4 {[%clk 0:00:51]} 1/2-1/2


[Site "https://www.chess.com"]

[Event "Titled Tuesday Blitz July 13 2021"]
[White "Pruijssers, Roeland"]
[Black "Gracia Alvarez, Gerardo Antonio"]
[WhiteFideId "1013068"]
[BlackFideId "5109124"]
[WhiteElo "2545"]
[BlackElo "2148"]
[Result "1-0"]
[Round "04"]
[TimeControl "180+1"]
[Date "2021.07.13"]
[WhiteClock "0:00:16"]
[BlackClock "0:00:02"]

1. e4 {[%clk 0:03:00]}  c5 {[%clk 0:02:59]} 2. Nf3 {[%clk 0:02:59]}  Nc6 {[%clk 0:03:00]} 3. Bb5 {[%clk 0:02:49]}  g6 {[%clk 0:03:00]} 4. Bxc6 {[%clk 0:02:50]}  dxc6 {[%clk 0:03:01]} 5. O-O {[%clk 0:02:50]}  Bg7 {[%clk 0:03:00]} 6. d3 {[%clk 0:02:49]}  Nf6 {[%clk 0:02:58]} 7. Nc3 {[%clk 0:02:47]}  Nd7 {[%clk 0:02:55]} 8. Be3 {[%clk 0:02:42]}  e5 {[%clk 0:02:50]} 9. Qd2 {[%clk 0:02:29]}  h6 {[%clk 0:02:50]} 10. h3 {[%clk 0:02:12]}  b6 {[%clk 0:02:49]} 11. Nh2 {[%clk 0:02:08]}  Nf8 {[%clk 0:02:48]} 12. f4 {[%clk 0:02:07]}  exf4 {[%clk 0:02:49]} 13. Bxf4 {[%clk 0:02:07]}  Ne6 {[%clk 0:02:49]} 14. Bg3 {[%clk 0:02:06]}  Qg5 {[%clk 0:02:49]} 15. Qe1 {[%clk 0:01:57]}  Nd4 {[%clk 0:02:27]} 16. Rc1 {[%clk 0:01:54]}  O-O {[%clk 0:01:46]} 17. Bf4 {[%clk 0:01:40]}  Qe7 {[%clk 0:01:31]} 18. Qd2 {[%clk 0:01:29]}  Kh7 {[%clk 0:01:25]} 19. Rce1 {[%clk 0:01:27]}  Be6 {[%clk 0:00:58]} 20. e5 {[%clk 0:01:25]}  g5 {[%clk 0:00:49]} 21. Bg3 {[%clk 0:01:17]}  f5 {[%clk 0:00:48]} 22. exf6 {[%clk 0:01:15]}  Rxf6 {[%clk 0:00:48]} 23. Rxf6 {[%clk 0:01:07]}  Qxf6 {[%clk 0:00:48]} 24. Be5 {[%clk 0:01:01]}  Qg6 {[%clk 0:00:48]} 25. Bxg7 {[%clk 0:01:00]}  Kxg7 {[%clk 0:00:49]} 26. Ne4 {[%clk 0:00:58]}  Rf8 {[%clk 0:00:38]} 27. c3 {[%clk 0:00:57]}  Nf5 {[%clk 0:00:35]} 28. Nf3 {[%clk 0:00:54]}  Bd5 {[%clk 0:00:29]} 29. c4 {[%clk 0:00:44]}  Bxe4 {[%clk 0:00:19]} 30. dxe4 {[%clk 0:00:44]}  Ne7 {[%clk 0:00:11]} 31. Qd7 {[%clk 0:00:40]}  Qf6 {[%clk 0:00:05]} 32. e5 {[%clk 0:00:36]}  Qf7 {[%clk 0:00:05]} 33. e6 {[%clk 0:00:28]}  Qe8 {[%clk 0:00:05]} 34. Qxa7 {[%clk 0:00:27]}  Kg8 {[%clk 0:00:03]} 35. Qxb6 {[%clk 0:00:19]}  Qg6 {[%clk 0:00:02]} 36. Qc7 {[%clk 0:00:17]}  Re8 {[%clk 0:00:02]} 37. Qd7 {[%clk 0:00:16]}  g4 {[%clk 0:00:02]} 38. hxg4 {[%clk 0:00:16]} 1-0


[Site "https://www.chess.com"]

[Event "Titled Tuesday Blitz July 13 2021"]
[White "Prydun, Andriy"]
[Black "Gusarov, Grigory"]
[WhiteFideId "14145898"]
[BlackFideId "24102172"]
[WhiteElo "2024"]
[BlackElo "2269"]
[Result "0-1"]
[Round "04"]
[TimeControl "180+1"]
[Date "2021.07.13"]
[WhiteClock "0:00:01"]
[BlackClock "0:00:50"]

1. d4 {[%clk 0:02:51]}  Nf6 {[%clk 0:02:58]} 2. Nc3 {[%clk 0:02:49]}  d5 {[%clk 0:02:58]} 3. Bf4 {[%clk 0:02:48]}  c6 {[%clk 0:02:57]} 4. e3 {[%clk 0:02:48]}  Qb6 {[%clk 0:02:54]} 5. a3 {[%clk 0:02:45]}  Bf5 {[%clk 0:02:53]} 6. f3 {[%clk 0:02:44]}  h6 {[%clk 0:02:48]} 7. g4 {[%clk 0:02:28]}  Bh7 {[%clk 0:02:46]} 8. h4 {[%clk 0:02:27]}  Qxb2 {[%clk 0:02:44]} 9. Kd2 {[%clk 0:02:27]}  Bxc2 {[%clk 0:02:30]} 10. Qxc2 {[%clk 0:02:05]}  Qxa1 {[%clk 0:02:30]} 11. Qb3 {[%clk 0:01:53]}  Qxf1 {[%clk 0:01:42]} 12. Qxb7 {[%clk 0:01:36]}  e5 {[%clk 0:01:30]} 13. Qxa8 {[%clk 0:01:16]}  exf4 {[%clk 0:01:22]} 14. Qxb8+ {[%clk 0:01:15]}  Ke7 {[%clk 0:01:22]} 15. Nce2 {[%clk 0:00:46]}  fxe3+ {[%clk 0:01:19]} 16. Kxe3 {[%clk 0:00:46]}  Nd7 {[%clk 0:01:10]} 17. Qf4 {[%clk 0:00:39]}  g6 {[%clk 0:01:04]} 18. Rh2 {[%clk 0:00:20]}  Bg7 {[%clk 0:01:00]} 19. Kd2 {[%clk 0:00:08]}  Rb8 {[%clk 0:00:55]} 20. Nc1 {[%clk 0:00:01]}  Rb2+ {[%clk 0:00:50]} 0-1


[Site "https://www.chess.com"]

[Event "Titled Tuesday Blitz July 13 2021"]
[White "Przybylski, Wojciech"]
[Black "Nguyen, Ngoc Truong Son"]
[WhiteFideId "1117599"]
[BlackFideId "12401110"]
[WhiteElo "2317"]
[BlackElo "2596"]
[Result "1/2-1/2"]
[Round "04"]
[TimeControl "180+1"]
[Date "2021.07.13"]
[WhiteClock "0:00:06"]
[BlackClock "0:00:07"]

1. e4 {[%clk 0:03:00]}  c5 {[%clk 0:02:32]} 2. Nf3 {[%clk 0:02:59]}  Nc6 {[%clk 0:02:33]} 3. Bb5 {[%clk 0:02:57]}  g6 {[%clk 0:02:32]} 4. O-O {[%clk 0:02:57]}  Bg7 {[%clk 0:02:32]} 5. c3 {[%clk 0:02:57]}  Nf6 {[%clk 0:02:31]} 6. Re1 {[%clk 0:02:57]}  O-O {[%clk 0:02:29]} 7. a4 {[%clk 0:02:55]}  d5 {[%clk 0:02:27]} 8. e5 {[%clk 0:02:53]}  Ne8 {[%clk 0:02:23]} 9. d4 {[%clk 0:02:52]}  cxd4 {[%clk 0:02:19]} 10. cxd4 {[%clk 0:02:52]}  Bg4 {[%clk 0:02:19]} 11. Be3 {[%clk 0:02:48]}  Rc8 {[%clk 0:02:18]} 12. Nc3 {[%clk 0:02:31]}  a6 {[%clk 0:02:13]} 13. Be2 {[%clk 0:02:25]}  Nc7 {[%clk 0:02:08]} 14. h3 {[%clk 0:02:22]}  Bxf3 {[%clk 0:02:08]} 15. Bxf3 {[%clk 0:02:23]}  e6 {[%clk 0:02:05]} 16. a5 {[%clk 0:02:13]}  Rb8 {[%clk 0:01:48]} 17. Qd2 {[%clk 0:02:02]}  Na8 {[%clk 0:01:38]} 18. Nd1 {[%clk 0:01:43]}  b6 {[%clk 0:01:37]} 19. axb6 {[%clk 0:01:43]}  Nxb6 {[%clk 0:01:35]} 20. Rxa6 {[%clk 0:01:25]}  Nc4 {[%clk 0:01:35]} 21. Qc3 {[%clk 0:01:25]}  Rc8 {[%clk 0:00:47]} 22. Be2 {[%clk 0:00:37]}  Nb8 {[%clk 0:00:39]} 23. Ra1 {[%clk 0:00:33]}  Nxe5 {[%clk 0:00:40]} 24. Qa5 {[%clk 0:00:27]}  Qxa5 {[%clk 0:00:37]} 25. Rxa5 {[%clk 0:00:26]}  Nc4 {[%clk 0:00:36]} 26. Ra4 {[%clk 0:00:22]}  Nc6 {[%clk 0:00:34]} 27. Bxc4 {[%clk 0:00:20]}  dxc4 {[%clk 0:00:34]} 28. Rxc4 {[%clk 0:00:20]}  Ne7 {[%clk 0:00:32]} 29. b3 {[%clk 0:00:18]}  Rb8 {[%clk 0:00:29]} 30. b4 {[%clk 0:00:14]}  Nd5 {[%clk 0:00:29]} 31. Bd2 {[%clk 0:00:14]}  Nb6 {[%clk 0:00:27]} 32. Rc5 {[%clk 0:00:14]}  Bxd4 {[%clk 0:00:27]} 33. Rb5 {[%clk 0:00:14]}  Nc4 {[%clk 0:00:27]} 34. Rxb8 {[%clk 0:00:14]}  Rxb8 {[%clk 0:00:28]} 35. Bc3 {[%clk 0:00:06]}  Bxc3 {[%clk 0:00:28]} 36. Nxc3 {[%clk 0:00:07]}  Rxb4 {[%clk 0:00:23]} 37. Ne4 {[%clk 0:00:07]}  Kg7 {[%clk 0:00:22]} 38. g3 {[%clk 0:00:06]}  Ne5 {[%clk 0:00:22]} 39. Kg2 {[%clk 0:00:06]}  Nd3 {[%clk 0:00:21]} 40. Re3 {[%clk 0:00:06]}  Rd4 {[%clk 0:00:18]} 41. Ng5 {[%clk 0:00:04]}  h6 {[%clk 0:00:15]} 42. Nf3 {[%clk 0:00:04]}  Rd5 {[%clk 0:00:15]} 43. h4 {[%clk 0:00:04]}  e5 {[%clk 0:00:13]} 44. Re2 {[%clk 0:00:03]}  f5 {[%clk 0:00:13]} 45. Ne1 {[%clk 0:00:02]}  Nc5 {[%clk 0:00:10]} 46. Rc2 {[%clk 0:00:02]}  e4 {[%clk 0:00:10]} 47. Rc3 {[%clk 0:00:01]}  Ne6 {[%clk 0:00:09]} 48. Nc2 {[%clk 0:00:01]}  Rc5 {[%clk 0:00:07]} 49. Rxc5 {[%clk 0:00:01]}  Nxc5 {[%clk 0:00:08]} 50. Ne3 {[%clk 0:00:01]}  Kf6 {[%clk 0:00:07]} 51. f3 {[%clk 0:00:01]}  Ke5 {[%clk 0:00:05]} 52. Nc4+ {[%clk 0:00:01]}  Kd5 {[%clk 0:00:04]} 53. Ne3+ {[%clk 0:00:01]}  Kd4 {[%clk 0:00:04]} 54. Nf1 {[%clk 0:00:01]}  e3 {[%clk 0:00:04]} 55. f4 {[%clk 0:00:02]}  e2 {[%clk 0:00:04]} 56. Nh2 {[%clk 0:00:02]}  e1=Q {[%clk 0:00:05]} 57. Nf3+ {[%clk 0:00:03]}  Ke3 {[%clk 0:00:05]} 58. Nxe1 {[%clk 0:00:04]}  Ne4 {[%clk 0:00:05]} 59. Nf3 {[%clk 0:00:04]}  g5 {[%clk 0:00:04]} 60. hxg5 {[%clk 0:00:04]}  hxg5 {[%clk 0:00:05]} 61. fxg5 {[%clk 0:00:04]}  f4 {[%clk 0:00:06]} 62. gxf4 {[%clk 0:00:04]}  Kxf4 {[%clk 0:00:06]} 63. g6 {[%clk 0:00:05]}  Nf6 {[%clk 0:00:06]} 64. g7 {[%clk 0:00:05]}  Kf5 {[%clk 0:00:06]} 65. Nd2 {[%clk 0:00:05]}  Kg6 {[%clk 0:00:06]} 66. Ne4 {[%clk 0:00:06]}  Kxg7 {[%clk 0:00:07]} 1/2-1/2


[Site "https://www.chess.com"]

[Event "Titled Tuesday Blitz July 13 2021"]
[White "Reprintsev, Alexander"]
[Black "Rustemov, Alexander"]
[WhiteFideId "14100541"]
[BlackFideId "4119002"]
[WhiteElo "2126"]
[BlackElo "2767"]
[Result "0-1"]
[Round "04"]
[TimeControl "180+1"]
[Date "2021.07.13"]
[WhiteClock "0:00:51"]
[BlackClock "0:00:25"]

1. e4 {[%clk 0:03:00]}  e6 {[%clk 0:03:00]} 2. Qe2 {[%clk 0:03:00]}  c5 {[%clk 0:03:00]} 3. b3 {[%clk 0:03:00]}  Nc6 {[%clk 0:02:58]} 4. Bb2 {[%clk 0:03:00]}  d6 {[%clk 0:02:56]} 5. f4 {[%clk 0:03:00]}  Nf6 {[%clk 0:02:55]} 6. Nc3 {[%clk 0:03:00]}  Be7 {[%clk 0:02:54]} 7. O-O-O {[%clk 0:02:59]}  O-O {[%clk 0:02:53]} 8. g4 {[%clk 0:02:59]}  Nd4 {[%clk 0:02:45]} 9. Qg2 {[%clk 0:02:58]}  Bd7 {[%clk 0:02:39]} 10. g5 {[%clk 0:02:58]}  Nh5 {[%clk 0:02:30]} 11. Qg4 {[%clk 0:02:57]}  g6 {[%clk 0:02:28]} 12. Nce2 {[%clk 0:02:56]}  e5 {[%clk 0:02:22]} 13. f5 {[%clk 0:02:54]}  Bxg5 {[%clk 0:02:21]} 14. Nxd4 {[%clk 0:02:53]}  exd4 {[%clk 0:02:15]} 15. Nf3 {[%clk 0:02:53]}  Bf6 {[%clk 0:02:10]} 16. Bc4 {[%clk 0:02:52]}  Kh8 {[%clk 0:02:03]} 17. Rhg1 {[%clk 0:02:52]}  Qe7 {[%clk 0:02:01]} 18. c3 {[%clk 0:02:49]}  dxc3 {[%clk 0:01:59]} 19. Bxc3 {[%clk 0:02:47]}  Bxc3 {[%clk 0:01:52]} 20. dxc3 {[%clk 0:02:48]}  Rae8 {[%clk 0:01:43]} 21. Bd5 {[%clk 0:02:45]}  Nf6 {[%clk 0:01:35]} 22. Qf4 {[%clk 0:02:44]}  Nxd5 {[%clk 0:01:32]} 23. Rxd5 {[%clk 0:02:42]}  Bc6 {[%clk 0:01:23]} 24. Rxd6 {[%clk 0:02:36]}  Qxe4 {[%clk 0:01:22]} 25. Qxe4 {[%clk 0:02:36]}  Bxe4 {[%clk 0:01:19]} 26. fxg6 {[%clk 0:02:32]}  hxg6 {[%clk 0:01:16]} 27. Ng5 {[%clk 0:02:30]}  Bf5 {[%clk 0:01:11]} 28. h4 {[%clk 0:02:30]}  Re2 {[%clk 0:01:05]} 29. Rd2 {[%clk 0:02:27]}  Rxd2 {[%clk 0:01:02]} 30. Kxd2 {[%clk 0:02:28]}  Kg7 {[%clk 0:01:02]} 31. Re1 {[%clk 0:02:26]}  Rd8+ {[%clk 0:00:58]} 32. Kc1 {[%clk 0:02:24]}  Kf6 {[%clk 0:00:53]} 33. a4 {[%clk 0:02:18]}  Rd3 {[%clk 0:00:51]} 34. Kb2 {[%clk 0:02:17]}  Rd2+ {[%clk 0:00:50]} 35. Ka3 {[%clk 0:02:17]}  Rc2 {[%clk 0:00:46]} 36. Re3 {[%clk 0:02:09]}  a5 {[%clk 0:00:44]} 37. Nh7+ {[%clk 0:02:05]}  Kg7 {[%clk 0:00:44]} 38. Ng5 {[%clk 0:02:05]}  f6 {[%clk 0:00:42]} 39. Nf3 {[%clk 0:01:18]}  Kf7 {[%clk 0:00:41]} 40. b4 {[%clk 0:01:03]}  Rxc3+ {[%clk 0:00:36]} 41. Rxc3 {[%clk 0:01:03]}  axb4+ {[%clk 0:00:36]} 42. Kb3 {[%clk 0:01:03]}  bxc3 {[%clk 0:00:36]} 43. Kxc3 {[%clk 0:01:04]}  Be6 {[%clk 0:00:34]} 44. Nd2 {[%clk 0:01:03]}  Bd5 {[%clk 0:00:34]} 45. a5 {[%clk 0:01:01]}  g5 {[%clk 0:00:32]} 46. h5 {[%clk 0:01:00]}  f5 {[%clk 0:00:29]} 47. Nf1 {[%clk 0:00:58]}  f4 {[%clk 0:00:29]} 48. Nh2 {[%clk 0:00:57]}  Be6 {[%clk 0:00:28]} 49. Nf3 {[%clk 0:00:57]}  Kf6 {[%clk 0:00:28]} 50. h6 {[%clk 0:00:56]}  g4 {[%clk 0:00:28]} 51. h7 {[%clk 0:00:56]}  Kg7 {[%clk 0:00:28]} 52. Ng5 {[%clk 0:00:56]}  Bd5 {[%clk 0:00:28]} 53. Kd2 {[%clk 0:00:54]}  g3 {[%clk 0:00:27]} 54. Ke2 {[%clk 0:00:54]}  c4 {[%clk 0:00:26]} 55. Nh3 {[%clk 0:00:50]}  f3+ {[%clk 0:00:25]} 56. Ke3 {[%clk 0:00:51]}  f2 {[%clk 0:00:25]} 0-1


[Site "https://www.chess.com"]